Workbook

Sheet Pasiūlymas
A1: Perkančioji organizacija, kuriai teikiamas pasiūlymas: | C1: VŠĮ Kauno klinikinė ligoninė
B3: PASIŪLYMAS
B4: Vakcinos
A6: Data: | B6: 2018 02 13
A7: Nr.:
A8: Vieta: | B8: Kaunas
A10: Tiekėjo pavadinimas /Jeigu dalyvauja ūkio subjektų grupė, surašomi visi dalyvių pavadinimai/ | C10: UAB"Tamro"
A11: Įmonės kodas /Jeigu dalyvauja ūkio subjektų grupė, surašomi visi dalyvių kodai/ | C11: 111448632
A12: PVM mokėtojo kodas /Jeigu dalyvauja ūkio subjektų grupė, surašomi visi dalyvių kodai/ | C12: LT114486314
A13: Banko pavadinimas, banko kodas, sąskaitos Nr. | C13: AB SEB bankas A.s.LT797044060008057533
A14: Tiekėjo adresas /Jeigu dalyvauja ūkio subjektų grupė, surašomi visi dalyvių adresai/ | C14: 9-ojo Forto g.70, Kaunas
A15: Telefono numeris | C15: 837 401004
A16: Fakso numeris | C16: 837 401096
A17: El. pašto adresas | C17: Jurate.Zabaliuniene@tamro.com
A18: Asmens, pasirašiusio pasiūlymą saugiu elektroniniu parašu, vardas, pavardė, pareigos | C18: Jūratė Žabaliūnienė
A19: Asmens, įgalioto pasirašyti sutartį, vardas, pavardė, pareigos | C19: Generalinė direktorė Rasa Marcinkevičienė
A23: 1. Šiuo pasiūlymu pažymime, kad sutinkame su visomis pirkimo sąlygomis, nustatytomis: 1) pirkimo skelbime, paskelbtame Viešųjų pirkimų įstatymo nustatyta tvarka; 2) pirkimo sąlygose ir kituose pirkimo dokumentuose (jų paaiškinimuose, papildymuose).
A25: Siūlomas pirkimo objektas visiškai atitinka pirkimo sąlygose nustatytus reikalavimus ir jo kaina yra:
A28: Nr. | B28: Pavadinimas | C28: Kiekis | D28: Mato vienetas | E28: Kaina be PVM | F28: Suma be PVM
A29: 1. | B29: Inaktyvuota hepatito A vakcina 1,0 ml
A30: 1.1. | B30: Inaktyvuota hepatito A vakcina 1,0 ml | C30: 70 | D30: Vnt. | E30: 26.76 | F30: =E30*70 -> 1873.2
E31: Suma be PVM | F31: =F30 -> 1873.2
E32: PVM suma | F32: =F31*0.05 -> 93.66
E33: Suma su PVM | F33: =F31+F32 -> 1966.86
A36: 2. | B36: Inaktyvuota, adsorbuota hepatito A vakcina (paaugliams ir suaugusiems 0,5 ml
A37: 2.1. | B37: Inaktyvuota, adsorbuota hepatito A vakcina (paaugliams ir suaugusiems 0,5 ml | C37: 100 | D37: Vnt. | E37: 26 | F37: =E37*100 -> 2600
E38: Suma be PVM | F38: =F37 -> 2600
E39: PVM suma | F39: =F38*0.05 -> 130
E40: Suma su PVM | F40: =F38+F39 -> 2730
A43: 3. | B43: Inaktyvuota hepatito A vakcina (vaikams) 0,5 ml
A44: 3.1. | B44: Inaktyvuota hepatito A vakcina (vaikams) 0,5 ml | C44: 25 | D44: Vnt. | E44: 19.99 | F44: =E44*25 -> 499.75
E45: Suma be PVM | F45: =F44 -> 499.75
E46: PVM suma | F46: =F45*0.05 -> 24.9875
E47: Suma su PVM | F47: =F45+F46 -> 524.7375
A50: 4. | B50: Gripo vakcina (keturvalentė, konjuguota) 0,5ml ***
A51: 4.1. | B51: Gripo vakcina (keturvalentė, konjuguota) 0,5ml *** | C51: 160 | D51: Vnt. | E51: 10 | F51: =E51*160 -> 1600
E52: Suma be PVM | F52: =F51 -> 1600
E53: PVM suma | F53: =F52*0.05 -> 80
E54: Suma su PVM | F54: =F52+F53 -> 1680
A57: 5. | B57: Meningokokų A, C, W - 135, Y konjuguota vakcina 0,5ml
A58: 5.1. | B58: Meningokokų A, C, W - 135, Y konjuguota vakcina 0,5ml | C58: 25 | D58: Vnt.
E59: Suma be PVM
E60: PVM suma
E61: Suma su PVM
A64: 6. | B64: Meningokokų B grupės rekombinantinė - adsorbuota, skirta 10 metų ir vyresniems 0,5ml
A65: 6.1. | B65: Meningokokų B grupės rekombinantinė - adsorbuota, skirta 10 metų ir vyresniems 0,5ml | C65: 20 | D65: Vnt. | E65: 75.99 | F65: =E65*20 -> 1519.8
E66: Suma be PVM | F66: =F65 -> 1519.8
E67: PVM suma | F67: =F66*0.05 -> 75.99
E68: Suma su PVM | F68: =F66+F67 -> 1595.79
A71: 7. | B71: Žmogaus papilomos virusų vakcina (16, 18 tipo) 0,5ml
A72: 7.1. | B72: Žmogaus papilomos virusų vakcina (16, 18 tipo) 0,5ml | C72: 20 | D72: Vnt.
E73: Suma be PVM
E74: PVM suma
E75: Suma su PVM
A78: 8. | B78: Žmogaus papilomos virusų vakcina (6, 11, 16, 18 tipo) 0,5ml
A79: 8.1. | B79: Žmogaus papilomos virusų vakcina (6, 11, 16, 18 tipo) 0,5ml | C79: 20 | D79: Vnt. | E79: 87.3 | F79: =E79*20 -> 1746
E80: Suma be PVM | F80: =F79 -> 1746
E81: PVM suma | F81: =F80*0.05 -> 87.3
E82: Suma su PVM | F82: =F80+F81 -> 1833.3
A85: 9. | B85: Devynvalentė rekombinantinė ŽVP vakcina
A86: 9.1. | B86: Devynvalentė rekombinantinė ŽVP vakcina | C86: 60 | D86: Vnt. | E86: 102.9 | F86: =E86*60 -> 6174
E87: Suma be PVM | F87: =F86 -> 6174
E88: PVM suma | F88: =F87*0.05 -> 308.7
E89: Suma su PVM | F89: =F87+F88 -> 6482.7
A92: 10. | B92: Inaktyvuota rotaviruso vakcina 2ml
A93: 10.1. | B93: Inaktyvuota rotaviruso vakcina 2ml | C93: 10 | D93: Vnt. | E93: 37.4 | F93: =E93*10 -> 374
E94: Suma be PVM | F94: =F93 -> 374
E95: PVM suma | F95: =F94*0.05 -> 18.7
E96: Suma su PVM | F96: =F94+F95 -> 392.7
A99: 11. | B99: Vakcina nuo B tipo Haemofilus Influenzae infekcijos 0,5ml
A100: 11.1. | B100: Vakcina nuo B tipo Haemofilus Influenzae infekcijos 0,5ml | C100: 20 | D100: Vnt. | E100: 21 | F100: =E100*20 -> 420
E101: Suma be PVM | F101: =F100 -> 420
E102: PVM suma | F102: =F101*0.05 -> 21
E103: Suma su PVM | F103: =F101+F102 -> 441
A106: 12. | B106: Kombinuota tymų -epideminio parotito - raudoniukės vakcina 0,5ml **
A107: 12.1. | B107: Kombinuota tymų -epideminio parotito - raudoniukės vakcina 0,5ml ** | C107: 20 | D107: Vnt.
E108: Suma be PVM
E109: PVM suma
E110: Suma su PVM
A113: 13. | B113: Adsorbuota vakcina nuo difterijos, stabligės, kokliušo (neląstelinė, komponentinė) 0,5ml ***
A114: 13.1. | B114: Adsorbuota vakcina nuo difterijos, stabligės, kokliušo (neląstelinė, komponentinė) 0,5ml *** | C114: 40 | D114: Vnt.
E115: Suma be PVM
E116: PVM suma
E117: Suma su PVM
A120: 14. | B120: Adsorbuota vakcina nuo difterijos, stabligės ir inaktyvinta poliomielito vakcina 0,5ml
A121: 14.1. | B121: Adsorbuota vakcina nuo difterijos, stabligės ir inaktyvinta poliomielito vakcina 0,5ml | C121: 350 | D121: Vnt. | E121: 16.4 | F121: =E121*350 -> 5740
E122: Suma be PVM | F122: =F121 -> 5740
E123: PVM suma | F123: =F122*0.05 -> 287
E124: Suma su PVM | F124: =F122+F123 -> 6027
A127: 15. | B127: Inaktyvuota erkinio encefalito vakcina 0,5ml *
A128: 15.1. | B128: Inaktyvuota erkinio encefalito vakcina 0,5ml * | C128: 300 | D128: Vnt. | E128: 19.65 | F128: =E128*300 -> 5895
E129: Suma be PVM | F129: =F128 -> 5895
E130: PVM suma | F130: =F129*0.05 -> 294.75
E131: Suma su PVM | F131: =F129+F130 -> 6189.75
A134: 16. | B134: Inaktyvuota erkinio encefalito vakcina 0,25ml *
A135: 16.1. | B135: Inaktyvuota erkinio encefalito vakcina 0,25ml * | C135: 100 | D135: Vnt. | E135: 18.9 | F135: =E135*100 -> 1890
E136: Suma be PVM | F136: =F135 -> 1890
E137: PVM suma | F137: =F136*0.05 -> 94.5
E138: Suma su PVM | F138: =F136+F137 -> 1984.5
A141: 17. | B141: Polisacharidinė meningokokinė A + C vakcina 0,5 ml
A142: 17.1. | B142: Polisacharidinė meningokokinė A + C vakcina 0,5 ml | C142: 10 | D142: Vnt.
E143: Suma be PVM
E144: PVM suma
E145: Suma su PVM

Sheet Subtiekėjai
A2: Sutarties vykdymui numatome pasitelkti šiuos subtiekėjus / subteikėjus / subrangovus (įrašyti visus subtiekėjus / subteikėjus / subrangovus nepriklausomai nuo tiekiamų prekių/ teikiamų paslaugų/ atliekamų darbų vertės):
A4: Subtiekėjo / subteikėjo / subrangovo (-ų) pavadinimas (-ai) | C4: Adresas | F4: Trumpas aprašymas | I4: Procentas nuo pasiūlymo kainos be PVM
A11: Jeigu pirkimo dokumentų 18 punkte numatytas subtiekimo / subteikimo / subrangos apribojimas: Mes patvirtiname, kad subtiekėjams / subteikėjams / subrangovams (tiekėjams, kuriuos pasamdysime dalies sutartyje numatytų prekių tiekimui /paslaugų teikimui / darbų atlikimui) perduodamų tiekti prekių / teikti paslaugų/ atlikti darbų dalis neviršys proc. pasiūlymo kainos be PVM.
A13: Mes patvirtiname, kad esame / nesame (nereikalingą išbraukti) laikomi asocijuotais (susijusiais) su Perkančiąja organizacija pagal Lietuvos Respublikoje galiojančių teisės aktų (Lietuvos Respublikos pelno mokesčio, Lietuvos Respublikos pridėtinės vertės mokesčio ir Lietuvos Respublikos gyventojų pajamų mokesčio įstatymų) nuostatas.
A15: Kartu su pasiūlymu pateikiami šie dokumentai:
A17: Eil.Nr. | B17: "Pateiktų skaitmeninių dokumentų (ar jų kopijų) pavadinimas (pasiūlymą sudarančių konfidencialių dokumentų pavadinimai pažymėti prierašu KONFIDENCIALU)" | H17: Prisegtos bylos (failo) pavadinimas
A18: 1. | B18: Įgaliojimas Jūratei Žabaliūnienei | H18: Įgaliojimas, konfidencialu
A19: 2. | B19: EBVPD dokumentas | H19: 1 failas
A25: Pasiūlymo galiojimo užtikrinimui pateikiame :
A27: (Nurodyti užtikrinimo būdą, dydį, dokumentus)
A29: Pasiūlymas galioja iki termino, nustatyto pirkimo dokumentuose. Pasiūlymo neatskiriama dalis yra (rašoma, jeigu buvo reikalauta prie pasiūlymo pridėti atitinkamą dokumentą)
A33: Tiekėjo arba jo įgalioto asmens pareigų pavadinimas | E33: Viešųjų pirkimų specialistė
A36: Pasirašančio asmens vardas ir pavardė | E36: Jūratė Žabaliūnienė
A39: **kadangi visas pasiūlymas pasirašomas saugiu elektroniniu parašu, šio dokumento atskirai pasirašyti neprivaloma.
A100: 1311
